Workbook

Sheet List1
B2: Ceník osiv řepky ozimé 2016
A4: Odrůda | B4: Firma | C4: Typ | D4: Počet semen | E4: Počet VJ | F4: Cena za VJ | G4: Cena za VJ | H4: Moření
D5: ve VJ | E5: v balení | G5: po slevě
A6: DK Explicit * | B6: Monsanto | C6: H | D6: 500000 | E6: 3 | F6: 2487 | G6: =F6*0.71 -> 1765.77 | H6: TMTD
A7: DK Exquisite * | B7: Monsanto | C7: H | D7: 500000 | E7: 3 | F7: 2425 | G7: =F7*0.75 -> 1818.75 | H7: TMTD
A8: DK Exception * | B8: Monsanto | C8: H | D8: 500000 | E8: 3 | F8: 2509 | G8: =F8*0.7 -> 1756.3 | H8: TMTD
A9: DK Exstorm | B9: Monsanto | C9: H | D9: 500000 | E9: 3 | F9: 2405 | G9: =F9*0.75 -> 1803.75 | H9: TMTD
A10: DK Exssence | B10: Monsanto | C10: H | D10: 500000 | E10: 3 | F10: 2396 | G10: 1797 | H10: TMTD
A11: DK Platinium | B11: Monsanto | C11: H | D11: 500000 | E11: 3 | F11: 2589 | G11: 1941.75 | H11: TMTD
A12: DK Sensei | B12: Monsanto | C12: H | D12: 500000 | E12: 3 | F12: 2345 | G12: 1758.75 | H12: TMTD
A13: DK Exprit - N | B13: Monsanto | C13: H | D13: 500000 | E13: 3 | F13: 2396 | G13: 1797 | H13: TMTD
A14: DK Impression CL | B14: Monsanto | C14: H | D14: 500000 | E14: 3 | F14: 2549 | G14: 1911.75 | H14: TMTD
A15: Marathon * | B15: Rapool | C15: H | D15: 500000 | E15: 3 | F15: 2550 | G15: =F15*0.725 -> 1848.75 | H15: TMTD+DMM
A16: Sherpa | B16: Rapool | C16: H | D16: 500000 | E16: 3 | F16: 2350 | G16: =F16*0.73 -> 1715.5 | H16: TMTD
A17: Inspiration * | B17: Rapool | C17: H | D17: 500000 | E17: 3 | F17: 2550 | G17: =F17*0.72 -> 1836 | H17: TMTD+DMM
A18: Rohan | B18: Rapool | C18: H | D18: 500000 | E18: 3 | F18: 1850 | G18: =F18*0.75 -> 1387.5 | H18: TMTD
A19: Oriolus * | B19: Rapool | C19: H | D19: 500000 | E19: 3 | F19: 2600 | G19: =F19*0.75 -> 1950 | H19: TMTD+DMM
A20: Troy | B20: Rapool | C20: H | D20: 500000 | E20: 3 | F20: 2530 | G20: =F20*0.75 -> 1897.5 | H20: TMTD
A21: Pulsar | B21: Rapool | C21: H | D21: 500000 | E21: 3 | F21: 1850 | G21: =F21*0.75 -> 1387.5 | H21: TMTD
A22: Avatar | B22: Rapool | C22: H | D22: 500000 | E22: 3 | F22: 2680 | G22: =F22*0.75 -> 2010 | H22: TMTD
A23: Mercedes * | B23: Rapool | C23: h | D23: 500000 | E23: 3 | F23: 2650 | G23: =F23*0.71 -> 1881.5 | H23: TMTD+DMM
A24: Visby | B24: Rapool | C24: H | D24: 500000 | E24: 3 | F24: 2250 | G24: =F24*0.75 -> 1687.5 | H24: TMTD
A25: Hornet | B25: Rapool | C25: H | D25: 500000 | E25: 3 | F25: 1740 | G25: 1305 | H25: TMTD
A26: Mentor | B26: Rapool | C26: H | D26: 500000 | E26: 3 | F26: 2990 | G26: 2242.5 | H26: TMTD
A27: Sitro | B27: Rapool | C27: H | D27: 500000 | E27: 3 | F27: 1850 | G27: 1387.5 | H27: TMTD
A28: Edimax CL | B28: Rapool | C28: H | D28: 500000 | E28: 3 | F28: 2680 | G28: 2010 | H28: TMTD
A29: Veritas CL | B29: Rapool | C29: H | D29: 500000 | E29: 3 | F29: 2680 | G29: 2010 | H29: TMTD
A30: Atora * | B30: Rapool | C30: H | D30: 500000 | E30: 3 | F30: 2600 | G30: =F30*0.71 -> 1846 | H30: TMTD+DMM
A31: Shrek * | B31: Rapool | C31: H | D31: 500000 | E31: 3 | F31: 2600 | G31: =F31*0.71 -> 1846 | H31: TMTD+DMM
A32: Rumba | B32: Rapool | C32: H | D32: 500000 | E32: 3 | F32: 2250 | G32: =F32*0.75 -> 1687.5 | H32: TMTD
A33: NK Morse | B33: Syngenta | C33: L | D33: 666666 | E33: 3 | F33: 1442 | G33: =F33*0.76 -> 1095.92 | H33: TMTD
A34: NK Grandia | B34: Syngenta | C34: L | D34: 666666 | E34: 3 | F34: 1590 | G34: 1208.4 | H34: TMTD
A35: Vipiano - N | B35: Syngenta | C35: L | D35: 666666 | E35: 3 | F35: 1618 | G35: 1229.68 | H35: TMTD
A36: SY Cassidy | B36: Syngenta | C36: H | D36: 500000 | E36: 3 | F36: 2323 | G36: 1765.48 | H36: TMTD
A37: SY Saveo | B37: Syngenta | C37: H | D37: 500000 | E37: 3 | F37: 2383 | G37: 1811.08 | H37: TMTD
A38: SY Harnas * | B38: Syngenta | C38: H | D38: 500000 | E38: 3 | F38: 2483 | G38: 1887.08 | H38: TMTD+DMM
A39: SY Alister | B39: Syngenta | C39: H | D39: 500000 | E39: 3 | F39: 2642 | G39: 2007.92 | H39: TMTD
A40: Arsenal * | B40: LG | C40: H | D40: 500000 | E40: 3 | F40: 2475 | G40: =F40*0.71 -> 1757.25 | H40: TMTD | I40: CENA DO 31.5.2016
A41: Astronom * | B41: LG | C41: H | D41: 500000 | E41: 3 | F41: 2600 | G41: =F41*0.71 -> 1846 | H41: TMTD | I41: CENA DO 31.5.2016
A42: Artoga | B42: LG | C42: H | D42: 500000 | E42: 3 | F42: 2375 | G42: =F42*0.76 -> 1805 | H42: TMTD | I42: CENA DO 31.5.2016
A43: Alicante | B43: LG | C43: H | D43: 500000 | E43: 3 | F43: 2650 | G43: =F43*0.75 -> 1987.5 | H43: TMTD | I43: CENA DO 31.5.2016
A44: Archimedes | B44: LG | C44: H | D44: 500000 | E44: 3 | F44: 2700 | G44: =F44*0.76 -> 2052 | H44: TMTD | I44: CENA DO 31.5.2016
A45: Arabella | B45: LG | C45: L | D45: 700000 | E45: 2.14 | F45: 1900 | G45: 1444 | H45: TMTD | I45: CENA DO 31.5.2016
A46: Graf | B46: Saatbau | C46: H | D46: 500000 | E46: 3 | F46: 2390 | G46: 1816.4 | H46: TMTD
A47: Arazzo | B47: Saatbau | C47: H | D47: 500000 | E47: 3 | F47: 2490 | G47: 1892.4 | H47: TMTD
A48: Memphis | B48: Saatbau | C48: H | D48: 500000 | E48: 3 | F48: 2390 | G48: 1816.4 | H48: TMTD
A49: Sidney | B49: Saatbau | C49: L | D49: 700000 | E49: 3 | F49: 1690 | G49: 1284.4 | H49: TMTD
A50: Goya | B50: Saatbau | C50: L | D50: 700000 | E50: 3 | F50: 1390 | G50: 1056.4 | H50: TMTD
A51: Labrador | B51: Saatbau | C51: L | D51: 700000 | E51: 3 | F51: 1290 | G51: 980.4 | H51: TMTD
A52: Mirage | B52: Saatbau | C52: L | D52: 700000 | E52: 3 | F52: 1290 | G52: 980.4 | H52: TMTD
A53: Buzz | B53: Saatbau | C53: L | D53: 700000 | E53: 3 | F53: 1490 | G53: 1132.4 | H53: TMTD
A54: Cortes | B54: Selgen | C54: L | D54: 700000 | E54: 5 | F54: 1350 | G54: =F54*0.67 -> 904.5 | H54: Vitavax2000+Terra-Sorb
A55: Orex | B55: Selgen | C55: L | D55: 700000 | E55: 5 | F55: 1650 | G55: =F55*0.67 -> 1105.5 | H55: Vitavax2000+Terra-Sorb
A56: ES Alpha | B56: Sumiagro | C56: H | D56: 500000 | E56: 3 | F56: 1990 | G56: =F56*0.74 -> 1472.6 | H56: TMTD
A57: ES Bourbon | B57: Sumiagro | C57: L | D57: 666666 | E57: 3 | F57: 1299 | G57: =F57*0.74 -> 961.26 | H57: TMTD
A58: Granat | B58: Sumiagro | C58: H | D58: 500000 | E58: 5 | F58: 2140 | G58: =F58*0.74 -> 1583.6 | H58: TMTD
A59: Mazari | B59: Sumiagro | C59: H | D59: 500000 | E59: 3 | F59: 2240 | G59: =F59*0.74 -> 1657.6 | H59: TMTD
A60: Kvalitativní parametry osiva odpovídají požadavkům zákona č.219/2003 ve znění zákona
A61: č.444/2005, č.178/2006, č.299/2007 a vyhlášky č.384/2006 ve znění vyhlášky č.231/2007.
A62: Ceny jsou uváděny bez DPH a jsou platné od 11.5.2015. Případná změna cen vyhrazena.
A64: TMTD=Thiram
A65: DMM *=fung.mořidlo-účinná látka dimethomorph - stimuluje zrychlení počát.vývoje rostliny
A66: DMM * je možno objednat u materiálů označených hvězdičkou
A68: DMM *=příplatek u fi. Monsanto 169 Kč/1VJ - jen na objednávku
A69: DMM *=příplatek u fi. LG 160Kč/VJ nutno objednat do 31.5.2016
A70: DMM *=u fi. Rapool v ceně osiva
A71: DMM *=u fi. Syngenta v ceně osiva

Sheet List2

Sheet List3
